fUST/lending_fUST_20241012
["ID","MTS","AMOUNT","RATE_DAILY","PERIOD"]
[340162707,1728723041105,-500.0,0.00056712,120]
[340162708,1728723041114,-500.0,0.00056712,120]
[340162709,1728723041124,-500.0,0.00056712,120]
[340162710,1728723041133,-500.0,0.00056712,120]
[340162711,1728723041142,-500.0,0.00056712,120]
[340162712,1728723041151,-500.0,0.00056712,18]
[340162713,1728723041161,-500.0,0.00056986,120]
[340162714,1728723041170,-500.0,0.00056986,120]
[340162715,1728723041179,-500.0,0.00056986,120]
[340162716,1728723041188,-500.0,0.00056986,120]
[340162717,1728723041198,-500.0,0.00056986,120]
[340162718,1728723041208,-500.0,0.00056986,60]
[340162719,1728723041218,-500.0,0.00056986,18]
[340162720,1728723041227,-1000.0,0.00057,5]
[340162721,1728723041237,-5217.1043691,0.0005725,9]
[340162722,1728723041246,-500.0,0.0005726,120]
[340162723,1728723041255,-500.0,0.0005726,120]
[340162724,1728723041264,-574.910742,0.0005726,120]
[340162725,1728723041274,-500.0,0.0005726,120]
[340162726,1728723041284,-500.2419537,0.0005726,120]
[340162727,1728723041293,-588.70539481,0.0005726,18]
[340162728,1728723041302,-178.388194,0.00057304,120]
[340162729,1728723041311,-413.85,0.00057534,120]
[340162730,1728723041321,-500.0,0.00057534,120]
[340162731,1728723041330,-500.0,0.00057534,120]
[340162732,1728723041339,-500.0,0.00057534,60]
[340162733,1728723041349,-179.06911883,0.00057599,2]
[340162734,1728723041358,-500.0,0.00057808,120]
[340162735,1728723041368,-587.34255278,0.00057808,120]
[340162736,1728723041377,-1000.0,0.00058,7]
[340162737,1728723041387,-192.345866,0.00058077,30]
[340162738,1728723041397,-163.660006,0.00058077,30]
[340162739,1728723041406,-280.69847979,0.00058082,120]
[340162740,1728723041415,-500.0,0.00058082,60]
[340162741,1728723041424,-167.0,0.000581,120]
[340162742,1728723041434,-3954.6188862,0.00058277,28]
[340162743,1728723041443,-526.0,0.00058387,120]
[340162744,1728723041453,-1220.0,0.00058387,120]
[340162745,1728723041462,-500.0,0.0005863,60]
[340162746,1728723041471,-179.06911883,0.00059053,2]
[340162747,1728723041480,-150.0,0.000591,120]
[340162748,1728723041490,-163.021502,0.000591,2]
[340162749,1728723041501,-5217.1043691,0.00059143,9]
[340162750,1728723041511,-151.0,0.00059143,120]
[340162751,1728723041528,-66778.971689,0.00059153,2]
[340162752,1728723041540,-500.0,0.00059178,60]
[340162753,1728723041550,-5000.0,0.000592,30]
[340162754,1728723041558,-2820.00592918,0.00059202,120]
[340162755,1728723041570,-5922.88986427,0.00059292,2]
[340162756,1728723041579,-353.01,0.000593,2]
[340162757,1728723041589,-50000.0,0.000595,30]
[340162758,1728723041599,-219.086252,0.00059529,30]
[340162759,1728723041608,-249.169591,0.0005964,2]
[340162760,1728723041617,-5000.0,0.00059647,120]
[340162761,1728723041627,-2184.31001233,0.00059698,2]
[340162762,1728723041637,-500.0,0.00059726,60]
[340162763,1728723041646,-554968.66386133,0.0005975,120]
[340162764,1728723041700,-26813.95109167,0.0005975,120]
[340162765,1728723041712,-151.0,0.0005975,120]
[340162766,1728723041724,-151.0,0.0005975,60]
[340162767,1728723041737,-151.0,0.0005975,30]
[340162768,1728723041748,-151.0,0.0005975,30]
[340162769,1728723041759,-2460.46,0.00059798,30]
[340162770,1728723041777,-150.112236,0.000598,13]
[340162771,1728723041790,-3665.57,0.000598,30]
[340162772,1728723041801,-1048.99,0.000598,30]
[340162773,1728723041812,-209.099554,0.00059851,30]
[340162774,1728723041823,-825.122097,0.00059851,30]
[340162775,1728723041834,-150.112233,0.000599,12]
[340162776,1728723041848,-500.0,0.00059973,15]
[340162777,1728723041859,-500.0,0.00059973,15]
[340162778,1728723041871,-500.0,0.00059973,15]
[340162779,1728723041883,-759.0,0.0006,30]
[340162780,1728723041895,-1710.01479154,0.0006,120]
[340162781,1728723041906,-5002.27096098,0.0006,120]
[340162782,1728723041917,-1018.0,0.0006,120]
[340162783,1728723041929,-400.0,0.0006,60]
[340162784,1728723041941,-15250.04929781,0.0006,120]
[340162785,1728723041957,-184856.53401299,0.0006,120]
[340162786,1728723041970,-150.0,0.0006,120]
[340162787,1728723041982,-1869.615236,0.0006,30]
[340162788,1728723041997,-10062.37829165,0.0006,120]
[340162789,1728723042007,-2000.0,0.0006,120]
[340162790,1728723042019,-300.348294,0.0006,30]
[340162791,1728723042029,-150.0,0.000601,120]
[340162792,1728723042040,-2820.00592918,0.00060203,120]
[340162793,1728723042050,-219.086252,0.00060255,30]
[340162794,1728723042061,-500.0,0.00060273,60]
[340162795,1728723042071,-209.099554,0.00060572,30]
[340162796,1728723042082,-825.122097,0.00060572,30]
[340162797,1728723042093,-84136.19892451,0.00060742,2]
[340162798,1728723042103,-500.0,0.00060821,60]
[340162799,1728723042114,-219.086252,0.00060981,30]
[340162800,1728723042126,-6844.95585218,0.00060985,120]
[340162801,1728723042136,-150.0,0.00061,120]
[340162802,1728723042147,-6250.0,0.00061017,120]
[340162803,1728723042158,-200.0,0.000611,120]
[340162804,1728723042168,-2820.00592918,0.00061203,120]
[340162805,1728723042178,-1000.0,0.00061342,15]
[340162806,1728723042188,-151.0,0.00061342,15]
[340162807,1728723042198,-500.0,0.00061342,15]
[340162808,1728723042209,-100000.0,0.00061356,120]
[340162809,1728723042220,-500.0,0.00061369,60]
[340162810,1728723042230,-500.0,0.0006138,30]
[340162811,1728723042240,-500.0,0.0006138,30]
[340162812,1728723042251,-500.0,0.0006138,30]
[340162813,1728723042262,-500.0,0.0006138,30]
[340162814,1728723042274,-500.0,0.0006138,30]
[340162815,1728723042284,-518.62541432,0.0006138,30]
[340162816,1728723042295,-526.0,0.00061387,120]
[340162817,1728723042306,-1220.0,0.00061387,120]
[340162818,1728723042316,-1213.99299107,0.00061399,87]
[340162819,1728723042326,-500.0,0.000615,60]
[340162820,1728723042337,-154.38448363,0.00061565,120]
[340162821,1728723042349,-150.0,0.00061581,120]
[340162822,1728723042360,-178.388194,0.0006173,120]
[340162823,1728723042371,-3954.6188862,0.00061881,28]
[340162824,1728723042383,-500.0,0.00061917,60]
[340162825,1728723042394,-150.0,0.00062,120]
[340162826,1728723042404,-200.0,0.00062,120]
[340162827,1728723042415,-1000.0,0.00062,120]
[340162828,1728723042425,-2000.0,0.00062,120]
[340162829,1728723042435,-2820.00592918,0.00062203,120]
[340162830,1728723042445,-5000.0,0.00062359,120]
[340162831,1728723042455,-7500.0,0.00062387,120]
[340162832,1728723042464,-400.28854902,0.00062465,60]
[340162833,1728723042474,-2448.91,0.000625,30]
[340162834,1728723042483,-530.0,0.000625,60]
[340162835,1728723042497,-160.0,0.00062564,120]
[340162836,1728723042507,-12893.0853994,0.000626,120]
[340162837,1728723042522,-37106.9146006,0.000626,120]
[340162838,1728723042534,-1048.99,0.000626,30]
[340162839,1728723042545,-11881.28816662,0.00063,120]
[340162840,1728723042556,-150.0,0.00063,120]
[340162841,1728723042567,-1000.0,0.00063,120]
[340162842,1728723042579,-3665.57,0.00063,30]
[340162843,1728723042590,-500.0,0.00063013,120]
[340162844,1728723042599,-2820.00592918,0.00063203,120]
[340162845,1728723042609,-24030.19377078,0.0006335,64]
[340162868,1728723046837,-153.0,0.00054247,30]
[340162869,1728723046848,-252.98,0.0005999,10]
[340162870,1728723046859,-883.52211385,0.0006335,64]
[340162871,1728723046872,-3050.65860622,0.0006335,64]
[340162872,1728723047084,215.0,0.00047,90]
[340162873,1728723047446,215.0,0.00048904,90]
[340162874,1728723315357,1540.33510391,0.00027297,2]
[340162875,1728723385220,1000.0,0.00028,10]
[340162876,1728723398564,1000.0,0.00022,30]
[340162877,1728723444625,1000.0,0.00033,2]
[340162878,1728723450253,716.3,0.00034,120]
[340162882,1728723954144,-204.54546,0.00038157,2]
[340162883,1728723954169,-204.54546,0.00040145,2]
[340162884,1728723954194,-163.899,0.0004197,62]
[340162885,1728723954216,-410.98668818,0.0004197,2]
[340162886,1728724030138,-453.95531264,0.0004176,8]
[340162887,1728724030165,-44.39998972,0.0004197,2]
[340162888,1728724030192,-3617.2237173,0.00052677,120]
[340162889,1728724030217,-12765.36466399,0.00052705,2]
[340162900,1728724220314,2767.8260372,0.0002582,2]
[340162930,1728724238755,-5110.8095698,0.00052448,2]
[340162931,1728724238768,-500.61705105,0.00052777,30]
[340162932,1728724238779,-159.610489,0.00052877,120]
[340162933,1728724238791,-500.0,0.00054794,120]
[340162934,1728724238802,-1250.0,0.00054794,120]
[340162935,1728724238811,-500.0,0.00054794,120]
[340162938,1728724238822,-499.782398,0.00054794,120]
[340162940,1728724238832,-500.0,0.00054794,120]
[340162942,1728724238842,-500.0,0.00054794,120]
[340162944,1728724238852,-226.16,0.00054794,120]
[340162945,1728724238862,-500.0,0.00054794,18]
[340162946,1728724238874,-1000.0,0.00054794,120]
[340162947,1728724238885,-513.5332624,0.00055068,120]
[340162948,1728724238895,-500.0,0.00055068,120]
[340162949,1728724238904,-500.0,0.00055068,120]
[340162950,1728724238913,-500.0,0.00055068,120]
[340162951,1728724238924,-500.0,0.00055068,18]
[340162952,1728724238936,-1000.0,0.00055068,120]
[340162953,1728724238946,-500.0,0.00055342,120]
[340162954,1728724238957,-500.0,0.00055342,120]
[340162955,1728724238968,-500.0,0.00055342,120]
[340162956,1728724238978,-500.0,0.00055342,18]
[340162957,1728724238989,-530.32938504,0.00055342,120]
[340162958,1728724238998,-224.252631,0.00055342,2]
[340162959,1728724239008,-166.11307,0.00055342,2]
[340162960,1728724239018,-298.359,0.00055546,120]
[340162961,1728724239028,-526.0,0.00055546,120]
[340162962,1728724239039,-1220.0,0.00055546,120]
[340162963,1728724239049,-500.0,0.00055616,120]
[340162964,1728724239060,-500.0,0.00055616,120]
[340162965,1728724239069,-282.27403953,0.00055616,120]
[340162966,1728724239079,-500.0,0.00055616,18]
[340162967,1728724239091,-179.06911883,0.00055841,2]
[340162968,1728724239102,-1000.0,0.00055841,120]
[340162969,1728724239115,-179.06911883,0.00055846,2]
[340162970,1728724239125,-179.06911883,0.00055851,2]
[340162971,1728724239136,-25.18955784,0.0005589,120]
[340162991,1728724240553,-474.81044216,0.0005589,120]
[340162994,1728724240564,-500.0,0.0005589,120]
[340162996,1728724240574,-500.0,0.0005589,18]
[340162999,1728724240595,-210.85,0.00055922,10]
[340163001,1728724240605,-175.71,0.00055922,10]
[340163003,1728724240615,-988.76780521,0.00055931,9]
[340163005,1728724240629,-76752.46338689,0.00055931,9]
[340163006,1728724240640,-1304.27609248,0.00055931,9]
[340163007,1728724240651,-310964.924768,0.00055941,9]
[340163008,1728724240663,-6521.3804624,0.00055941,9]
[340163009,1728724240674,-1304.27609248,0.0005599,9]
[340163010,1728724240685,-2565.9,0.00056,30]
[340163011,1728724240696,-734.3,0.00056,30]
[340163012,1728724240709,-151.0,0.00056,120]
[340163013,1728724240720,-2500.0,0.00056164,120]
[340163014,1728724240732,-500.0,0.00056164,120]
[340163015,1728724240745,-500.0,0.00056164,120]
[340163016,1728724240756,-500.0,0.00056164,18]
[340163017,1728724240766,-500.0,0.00056438,120]
[340163018,1728724240776,-500.0,0.00056438,120]
[340163019,1728724240787,-500.0,0.00056438,18]
[340163020,1728724240798,-500.0,0.00056712,120]
[340163021,1728724240809,-500.0,0.00056712,120]
[340163022,1728724240819,-500.0,0.00056712,18]
[340163023,1728724240830,-3617.22371727,0.00056895,120]
[340163024,1728724240842,-500.0,0.00056986,120]
[340163025,1728724240854,-500.0,0.00056986,120]
[340163026,1728724240865,-588.70539481,0.00056986,18]
[340163027,1728724240875,-500.0,0.0005726,120]
[340163028,1728724240886,-413.85,0.0005726,120]
[340163029,1728724240896,-1250.0,0.00057534,120]
[340163030,1728724240906,-500.0,0.00057534,120]
[340163031,1728724240916,-159.610489,0.00057549,120]
[340163032,1728724240927,-500.0,0.00057808,120]
[340163033,1728724240939,-163.660006,0.00058077,30]
[340163034,1728724240952,-205.716059,0.00058077,30]
[340163035,1728724240964,-500.0,0.00058082,120]
[340163036,1728724240974,-500.0,0.00058356,120]
[340163037,1728724240986,-150.0,0.00058546,120]
[340163038,1728724240995,-760.97,0.00058546,120]
[340163039,1728724241007,-500.0,0.0005863,120]
[340163040,1728724241022,-1304.27609248,0.0005889,9]
[340163041,1728724241034,-50000.0,0.000589,30]
[340163042,1728724241045,-500.0,0.00058904,120]
[340163043,1728724241056,-500.0,0.00059178,120]
[340163044,1728724241067,-16920.03557509,0.00059202,120]
[340163045,1728724241077,-500.0,0.00059452,120]
[340163046,1728724241088,-224.252631,0.0005964,2]
[340163047,1728724241098,-499.002,0.00059726,120]
[340163048,1728724241108,-353.01,0.000599,2]
[340163049,1728724241120,-2000.0,0.0006,120]
[340163050,1728724241132,-163.021502,0.000607,2]
[340163051,1728724241143,-155.9,0.00060975,120]
[340163052,1728724241154,-205.716059,0.00060981,30]
[340163053,1728724241163,-1304.27609248,0.00060988,10]
[340163054,1728724241175,-5922.88986427,0.00061044,2]
[340163055,1728724241187,-3617.22371727,0.00061114,120]
[340163056,1728724241198,-155.9,0.00061235,120]
[340163057,1728724241211,-155.9,0.00061495,120]
[340163058,1728724241221,-154.38448363,0.00061565,120]
[340163059,1728724241231,-155.9,0.00061755,120]
[340163060,1728724241243,-150.0,0.00062,120]
[340163061,1728724241255,-155.9,0.00062016,120]
[340163062,1728724241266,-159.610489,0.00062222,120]
[340163063,1728724241277,-155.9,0.00062276,120]
[340163064,1728724241288,-155.9,0.00062536,120]
[340163065,1728724241299,-1304.27609248,0.00062667,10]
[340163066,1728724241308,-66778.971689,0.00062677,2]
[340163067,1728724241321,-2184.31001233,0.00062696,2]
[340163068,1728724241335,-155.9,0.00062796,120]
[340163069,1728724241347,-150.0,0.00063,120]
[340163070,1728724241358,-150.0,0.00063,120]
[340163071,1728724241369,-500.0,0.00063013,120]
[340163072,1728724241381,-155.9,0.00063057,120]
[340163073,1728724241392,-2608.55218496,0.0006321,10]
[340163074,1728724241404,-85292.55993125,0.0006322,120]
[340163075,1728724241415,-2608.55218496,0.000633,10]
[340163076,1728724241427,-151.0,0.0006331,120]
[340163077,1728724241438,-155.9,0.00063317,120]
[340163078,1728724241448,-6521.3804624,0.0006332,10]
[340163079,1728724241458,-163667.10104167,0.0006333,120]
[340163080,1728724241475,-43531.37593387,0.0006333,120]
[340163081,1728724241486,-1304.27609248,0.0006334,10]
[340163082,1728724241496,-226223.37841291,0.0006335,2]
[340163083,1728724241506,-8750.0,0.00063757,120]
[340163084,1728724241516,-2965.96416465,0.00063875,28]
[340163085,1728724241525,-224.252631,0.00063937,2]
[340163086,1728724241536,-1000.0,0.00063998,120]
[340163087,1728724241547,-30000.0,0.00064,120]
[340163088,1728724241558,-3402.625,0.00064,120]
[340163089,1728724241570,-155.94368751,0.00064,120]
[340163090,1728724241579,-200.0,0.00064,120]
[340163091,1728724241590,-12681.77258343,0.00064,2]
[340163092,1728724241602,-1000.0,0.00064,120]
[340163093,1728724241613,-150.0,0.00064,14]
[340163094,1728724241624,-150.0,0.00064,120]
[340163095,1728724241636,-167.0,0.0006407,120]
[340163096,1728724241646,-195259.07546853,0.00064249,2]
[340163097,1728724241658,-734.3,0.000643,30]
[340163098,1728724241667,-12170.24765719,0.0006435,120]
[340163099,1728724241678,-160.93,0.000647,66]
[340163100,1728724241688,-160.93,0.000647,66]
[340163101,1728724241698,-160.93,0.000647,66]
[340163102,1728724241712,-160.93,0.000647,66]
[340163103,1728724241723,-160.93,0.000647,66]
[340163104,1728724241842,-160.93,0.000647,66]
[340163105,1728724241854,-160.93,0.000647,66]
[340163106,1728724241864,-872.47611557,0.000649,120]
[340163107,1728724241876,-1514.56782517,0.00064948,93]
[340163108,1728724241886,-1000.0,0.0006499,120]
[340163109,1728724241898,-16028.10627233,0.00065,64]
[340163110,1728724241907,-21894.56172588,0.00065,84]
[340163111,1728724241916,-1000.0,0.00065,120]
[340163112,1728724241928,-34483.48035643,0.00065,120]
[340163128,1728724243615,-109.33073424,0.00065,120]
[340163129,1728724243628,-3530.36221018,0.00065,120]
[340163130,1728724243641,-9608.82583568,0.00065,120]
[340163131,1728724243654,-5579.61992858,0.00065,120]
[340163141,1728724264183,318.2,0.00034,120]
[340163164,1728725231178,-793.81472401,0.0005176,2]
[340163165,1728725248103,-535.37669659,0.0005176,2]
[340163166,1728725248124,-160.662509,0.00052877,120]
[340163167,1728725248159,-500.0,0.00054794,120]
[340163168,1728725248183,-500.0,0.00055068,120]
[340163169,1728725248205,-700.0,0.00055341,120]
[340163170,1728725248227,-500.0,0.00055342,120]
[340163171,1728725248248,-190.614736,0.00055342,2]
[340163172,1728725248270,-700.0,0.00055615,15]
[340163173,1728725248291,-500.0,0.00055616,120]
[340163174,1728725248313,-500.0,0.0005589,120]
[340163175,1728725248335,-500.0,0.00056164,120]
[340163176,1728725248356,-163.9,0.00056437,109]
[340163177,1728725248377,-500.0,0.00056438,120]
[340163178,1728725248398,-150.0,0.00056533,120]
[340163179,1728725248419,-526.0,0.00056533,120]
[340163180,1728725248440,-1220.0,0.00056533,120]
[340163181,1728725248461,-500.0,0.00056712,120]
[340163182,1728725248482,-500.0,0.00056986,120]
[340163183,1728725248504,-500.0,0.00057258,120]
[340163184,1728725248525,-500.0,0.00057258,120]
[340163185,1728725248547,-1000.0,0.00057258,120]
[340163186,1728725248567,-500.0,0.00057258,120]
[340163187,1728725248588,-500.0,0.00057258,120]
[340163188,1728725248610,-500.0,0.00057258,120]
[340163189,1728725248631,-500.0,0.0005726,120]
[340163190,1728725248652,-500.0,0.00057532,120]
[340163191,1728725248672,-500.0,0.00057532,120]
[340163192,1728725248693,-36.35505415,0.00057532,120]
[340163195,1728725326122,214.32111746,0.0003,2]
[340163213,1728725347128,-938.36386,0.0004,10]
[340163214,1728725347149,-878.59,0.00041495,10]
[340163215,1728725347173,-7303.1203368,0.00045,120]
[340163216,1728725350234,-1183.84250961,0.00045,120]
[340163261,1728725431671,-12888.90072555,0.00041505,2]
[340163263,1728725431681,-500.0,0.00041505,2]
[340163265,1728725431691,-300.0,0.00041505,2]
[340163267,1728725431700,-794.48488364,0.00041505,2]
[340163269,1728725431709,-1458.05827081,0.00041505,2]
[340163271,1728725431722,-771.54,0.00041505,2]
[340163275,1728725432686,500.0,0.00041504,31]
[340163276,1728725434756,-1721.94311532,0.00041505,2]
[340163311,1728725439731,-2506.00776345,0.00041505,2]
[340163313,1728725439740,-514.92915389,0.00041505,2]
[340163315,1728725439750,-291.41257845,0.00041505,2]
[340163317,1728725439760,-4156.81747965,0.00041505,2]
[340163319,1728725439769,-320.84192019,0.00041505,2]
[340163321,1728725439779,-286.27610455,0.00041505,2]
[340163323,1728725439789,-1186.88660632,0.00041505,2]
[340163325,1728725439799,-50765.39825148,0.00041505,2]
[340163327,1728725439809,-163.54262327,0.00041505,2]
[340163329,1728725439819,-4127.56548919,0.00041505,2]
[340163331,1728725439828,-4663.19727532,0.00041505,120]
[340163333,1728725439838,-10114.10799158,0.00041505,2]
[340163335,1728725439847,-9847.05766869,0.00041505,2]
[340163337,1728725439857,-1168.12288359,0.00041505,2]
[340163339,1728725439867,-154.54518119,0.00041505,2]
[340163341,1728725439877,-173.80642027,0.00041505,2]
[340163343,1728725439887,-1519.4078853,0.00041505,2]
[340163345,1728725439897,-20849.2726438,0.00041505,2]
[340163347,1728725439910,-15332.63501493,0.00041505,2]
[340163349,1728725439920,-223.63120349,0.00041505,2]
[340163351,1728725439930,-437.80486553,0.00041505,2]
[340163352,1728725439940,-1020.07136658,0.00041505,2]
[340163353,1728725439950,-154037.23653734,0.00041505,2]
[340163354,1728725439962,-18118.35964389,0.00041505,2]
[340163355,1728725439972,-1555.46999831,0.00041505,2]
[340163356,1728725439982,-1525.27573847,0.00041505,2]
[340163357,1728725439991,-906.00737581,0.00041505,2]
[340163358,1728725440000,-3357.90161346,0.00041505,2]
[340163359,1728725440010,-175.68201096,0.00041505,2]
[340163360,1728725440019,-459.14584325,0.00041505,2]
[340163361,1728725440028,-831.70319742,0.00041505,2]
[340163362,1728725440041,-222.78188852,0.00041505,2]
[340163363,1728725440051,-886.319,0.00041505,2]
[340163364,1728725440060,-1480.0,0.00041505,2]
[340163365,1728725440071,-221.12071633,0.00041505,2]
[340163366,1728725440081,-160.60714,0.00052877,120]
[340163367,1728725440090,-5497.4982439,0.00055242,120]
[340163368,1728725440100,-500.0,0.00055342,18]
[340163369,1728725440109,-208.907938,0.00055342,2]
[340163370,1728725440119,-500.0,0.00055616,18]
[340163371,1728725440128,-500.0,0.0005589,18]
[340163372,1728725440138,-588.70539481,0.00056164,18]
[340163373,1728725440147,-1250.0,0.00057531,120]
[340163374,1728725440157,-463.64494585,0.00057532,120]
[340163375,1728725440167,-160.60714,0.00057549,120]
[340163376,1728725440177,-500.0,0.00057806,120]
[340163377,1728725440186,-500.0,0.00057806,120]
[340163378,1728725440196,-500.0,0.00057806,120]
[340163379,1728725440206,-205.716059,0.00058077,30]
[340163380,1728725440215,-205.716059,0.00058077,30]
[340163381,1728725440224,-163.660006,0.00058077,30]
[340163382,1728725440234,-500.0,0.0005808,120]
[340163383,1728725440244,-500.0,0.0005808,120]
[340163384,1728725440255,-499.002,0.0005808,120]
[340163385,1728725440265,-500.0,0.00058354,120]
[340163386,1728725440274,-500.0,0.00058354,120]
[340163387,1728725440283,-500.0,0.00058628,120]
[340163388,1728725440293,-500.0,0.00058628,120]
[340163389,1728725440302,-5497.49824388,0.00058819,120]
[340163390,1728725440311,-2500.0,0.00058901,120]
[340163391,1728725440321,-500.0,0.00058902,120]
[340163392,1728725440330,-500.0,0.00058902,120]
[340163393,1728725440341,-200.0,0.00059,120]
[340163394,1728725440353,-500.0,0.00059176,120]
[340163395,1728725440363,-500.0,0.00059176,120]
[340163396,1728725440373,-16920.03557509,0.00059202,120]
[340163397,1728725440384,-500.0,0.00059229,60]
[340163398,1728725440395,-500.0,0.00059229,120]
[340163399,1728725440406,-500.0,0.00059229,120]
[340163400,1728725440416,-500.0,0.00059229,120]
[340163401,1728725440426,-587.34255278,0.00059229,120]
[340163402,1728725440437,-500.0,0.0005945,120]
[340163403,1728725440449,-574.910742,0.0005945,120]
[340163404,1728725440458,-500.0,0.00059503,120]
[340163405,1728725440468,-500.0,0.00059503,120]
[340163406,1728725440478,-500.0,0.00059503,120]
[340163407,1728725440492,-526.0,0.00059533,120]
[340163408,1728725440503,-1220.0,0.00059533,120]
[340163409,1728725440514,-208.907938,0.0005964,2]
[340163410,1728725440524,-50000.0,0.000597,30]
[340163411,1728725440535,-500.0,0.00059724,120]
[340163412,1728725440547,-346070.09327393,0.0005975,120]
[340163413,1728725440562,-208898.5705874,0.0005975,120]
[340163414,1728725440572,-500.0,0.00059776,60]
[340163415,1728725440582,-500.0,0.00059776,120]
[340163416,1728725440594,-500.0,0.00059776,120]
[340163417,1728725440604,-1000.0,0.0005989,120]
[340163418,1728725440616,-123153.1985507,0.0005998,9]
[340163459,1728725446212,-298.7695201,0.00054795,120]
[340163460,1728725446223,-150.7601419,0.00054795,120]
[340163461,1728725446234,-153.0,0.00054795,120]
[340163462,1728725446244,-150.7601419,0.00054795,120]
[340163463,1728725446254,-153.0,0.00054795,120]
[340163464,1728725446264,-136.25564007,0.00054795,120]
[340163478,1728726195107,5245.34377863,0.00033,2]
[340163481,1728726392153,-4754.65622137,0.00033,2]
[340163482,1728726392176,-302.63687509,0.00035,2]
[340163483,1728726392199,-400.0,0.00035349,2]
[340163484,1728726392224,-400.0,0.00035349,2]
[340163485,1728726392248,-302.63687509,0.0003535,2]
[340163486,1728726392272,-295.32998485,0.000357,2]
[340163487,1728726392296,-166.666666,0.0003739,2]
[340163488,1728726392319,-560.10634574,0.0003752,2]
[340163489,1728726392348,-500.0,0.00037888,2]
[340163490,1728726392372,-309.57618301,0.00039036,2]
[340163492,1728726440149,-158.15082827,0.000349,2]
[340163493,1728726440171,-155.44387046,0.00039036,2]
[340163494,1728726440193,-235.410936,0.00039313,2]
[340163495,1728726440216,-317.51763735,0.00040275,2]
[340163496,1728726448156,-1279.39428228,0.00040275,2]
[340163499,1728726550113,-3866.89282417,0.00040275,2]
[340163500,1728726550134,-6522.6617149,0.0004304,120]
[340163501,1728726550156,-174.119756,0.0004314,2]
[340163502,1728726550177,-259.999999,0.00045,120]
[340163503,1728726554132,-6522.66171486,0.00049668,120]
[340163504,1728726554158,-17442.1105114,0.0005,60]
[340163505,1728726554188,-20394.226447,0.00051561,61]
[340163506,1728726621223,1097.36629705,0.00049,120]
[340163549,1728726638293,-13081.3819758,0.00051561,61]
[340163568,1728726639999,-17515.1371772,0.00051561,61]
[340163569,1728726640008,-2595.21864413,0.00052777,28]
[340163570,1728726640020,-160.60714,0.00052877,120]
[340163571,1728726640030,-195.6635752,0.00053836,30]
[340163572,1728726640040,-153.0,0.00053836,30]
[340163573,1728726640050,-153.0,0.00053836,30]
[340163574,1728726640068,-153.0,0.00053836,30]
[340163575,1728726640082,-153.0,0.00053836,30]
[340163576,1728726640094,-153.0,0.00053836,30]
[340163577,1728726640104,-156.8796274,0.00053973,30]
[340163578,1728726640117,-317.3629164,0.00053973,30]
[340163579,1728726640128,-301.5202838,0.00053973,30]
[340163580,1728726640138,-322.2260948,0.00053973,30]
[340163581,1728726640151,-153.0,0.00053973,30]
[340163582,1728726640163,-210.0488919,0.00053973,30]
[340163583,1728726640174,-210.0488919,0.00053973,30]
[340163584,1728726640184,-150.7601419,0.00053973,30]
[340163585,1728726640195,-153.0,0.00053973,30]
[340163586,1728726640206,-210.0488919,0.00053973,30]
[340163587,1728726640217,-153.0,0.00053973,30]
[340163588,1728726640227,-153.0,0.00053973,30]
[340163589,1728726640238,-2557.0,0.00054794,120]
[340163590,1728726640249,-500.0,0.00054794,120]
[340163591,1728726640259,-500.0,0.00054794,120]